[Event "GER-ch Youth U14W 2020"]
[Site "Willingen"]
[Date "2020.10.21"]
[Round "3.6"]
[White "Zöllner, Bente"]
[Black "Fischer, Darja"]
[Result "1-0"]
[ECO "D61"]
[WhiteElo "1630"]
[BlackElo "1598"]
[Annotator "NA RC"]
[PlyCount "145"]
[EventDate "2020.10.20"]
[EventType "swiss"]
[EventRounds "7"]
[EventCountry "GER"]
[SourceTitle "playchess.com"]
[Source "ChessBase"]
[SourceQuality "1"]
[TimeControl "40/5400+30:1800+30"]

1. d4 {[%emt 0:00:00]} d5 {[%emt 0:00:00]} 2. Nf3 {[%emt 0:00:00]} Nf6 {[%emt 0:00:00]} 3. c4 {[%emt 0:00:00]} e6 {[%emt 0:00:00]} 4. Nc3 {[%emt 0:00:05]} Nbd7 {[%emt 0:00:26]} 5. Bg5 {[%emt 0:00:17]} Be7 {[%emt 0:00:18]} 6. e3 {[%emt 0:00:20]} O-O {[%emt 0:00:26]} 7. Qc2 {[%emt 0:00:19]} b6 {[%emt 0:02:40]} 8. Bd3 {[%emt 0:01:58]} h6 {[%emt 0:00:58]} 9. Bh4 {[%emt 0:00:22]} Bb7 {[%emt 0:00:57]} 10. O-O {[%emt 0:01:16]} c5 {[%emt 0:01:05]} 11. Rad1 {[%emt 0:03:00]} Rc8 {[%emt 0:01:22]} 12. cxd5 {[%emt 0:02:58]} exd5 {[%emt 0:02:31]} 13. dxc5 {[%emt 0:06:29]} bxc5 {[%emt 0:01:37]} 14. b3 {[%emt 0:00:42]} Re8 {[%emt 0:06:47]} 15. Bf5 {[%emt 0:04:40]} d4 {[%emt 0:08:01]} 16. exd4 {[%emt 0:04:02]} Bxf3 {[%emt 0:00:49]} 17. gxf3 {[%emt 0:01:20]} cxd4 {[%emt 0:00:59]} 18. Rxd4 {[%emt 0:03:49]} Qa5 {[%emt 0:05:00]} 19. Rc1 {[%emt 0:06:36]} Rxc3 {[%emt 0:06:35]} 20. Qxc3 {[%emt 0:07:06]} Qxf5 {[%emt 0:00:08]} 21. Bg3 {[%emt 0:03:03]} Nh5 22. Re1 {[%emt 0:03:58]} Nxg3 {[%emt 0:11:20]} 23. fxg3 {[%emt 0:03:34]} Ne5 {[%emt 0:02:19]} 24. Rf4 {[%emt 0:07:19]} Qd3 {[%emt 0:16:15]} 25. Re3 {[%emt 0:05:28]} Qxc3 {[%emt 0:02:55]} 26. Rxc3 {[%emt 0:00:17]} Bg5 {[%emt 0:02:20]} 27. Ra4 {[%emt 0:04:14]} Bd2 {[%emt 0:02:54]} 28. Rc2 {[%emt 0:01:02]} Rd8 {[%emt 0:02:15]} 29. Kf2 {[%emt 0:01:41]} Nd3+ {[%emt 0:01:40]} 30. Ke2 {[%emt 0:02:40]} Nc1+ {[%emt 0:00:26]} 31. Kf1 {[%emt 0:03:04]} Be3 {[%emt 0:01:32]} 32. Ke1 {[%emt 0:04:54]} Rd3 {[%emt 0:04:15]} 33. Rac4 {[%emt 0:03:31]} Rd7 {[%emt 0:03:42]} 34. Rxc1 {[%emt 0:01:32]} Bxc1 {[%emt 0:00:07]} 35. Rxc1 {[%emt 0:00:06]} Kf8 {[%emt 0:00:11]} 36. Ke2 {[%emt 0:00:34]} Ke7 {[%emt 0:00:19]} 37. Rc6 {[%emt 0:00:28]} Kd8 {[%emt 0:02:08]} 38. b4 {[%emt 0:02:30]} Ke7 {[%emt 0:02:19]} 39. Ke3 {[%emt 0:00:38]} Ke8 {[%emt 0:02:21]} 40. Rc4 {[%emt 0:01:13]} Rd1 {[%emt 0:02:33]} 41. Rd4 {[%emt 0:33:07]} Rb1 {[%emt 0:34:43]} 42. a4 {[%emt 0:01:06]} Rb2 {[%emt 0:01:23]} 43. h4 {[%emt 0:00:33]} Rb3+ {[%emt 0:00:28]} 44. Ke4 {[%emt 0:00:56]} Ke7 {[%emt 0:00:20]} 45. g4 {[%emt 0:01:12]} Ke6 {[%emt 0:00:36]} 46. b5 {[%emt 0:02:55]} g6 {[%emt 0:01:47]} 47. g5 {[%emt 0:01:40]} h5 {[%emt 0:00:00]} 48. Kf4 {[%emt 0:00:00]} Ke7 {[%emt 0:00:00]} 49. Rc4 {[%emt 0:00:00]} Kd7 {[%emt 0:00:00]} 50. Kg3 {[%emt 0:00:00]} Ra3 {[%emt 0:00:00]} 51. Rf4 {[%emt 0:00:00]} Ke7 {[%emt 0:00:00]} 52. Kf2 {[%emt 0:00:00]} Rb3 {[%emt 0:00:00]} 53. Ke2 {[%emt 0:00:00]} Rc3 {[%emt 0:00:00]} 54. Kd2 {[%emt 0:00:00]} Rb3 {[%emt 0:00:00]} 55. Rf6 {[%emt 0:00:00]} Rb4 {[%emt 0:00:00]} 56. Ra6 {[%emt 0:00:00]} Rxh4 {[%emt 0:00:00]} 57. Rxa7+ {[%emt 0:00:00]} Ke6 {[%emt 0:00:00]} 58. b6 {[%emt 0:00:00]} Rb4 {[%emt 0:00:00]} 59. a5 {[%emt 0:00:00]} h4 {[%emt 0:00:00]} 60. Ke2 {[%emt 0:00:00]} h3 {[%emt 0:00:00]} 61. Kf2 {[%emt 0:00:00]} Rb2+ {[%emt 0:00:00]} 62. Kg1 {[%emt 0:00:13]} Kf5 {[%emt 0:00:00]} 63. Rxf7+ {[%emt 0:00:44]} Kxg5 {[%emt 0:00:00]} 64. Rh7 {[%emt 0:00:46]} Kf4 {[%emt 0:00:00]} 65. Rxh3 {[%emt 0:01:31]} Rb5 {[%emt 0:00:00]} 66. Rh4+ {[%emt 0:02:07]} Kg3 {[%emt 0:00:06]} 67. Rg4+ {[%emt 0:00:25]} Kxf3 {[%emt 0:00:22]} 68. Ra4 {[%emt 0:00:13]} g5 {[%emt 0:01:11]} 69. a6 {[%emt 0:01:00]} Rb1+ {[%emt 0:01:30]} 70. Kh2 {[%emt 0:00:29]} g4 {[%emt 0:00:20]} 71. Ra3+ {[%emt 0:00:29]} Kf2 {[%emt 0:00:22]} 72. a7 {[%emt 0:01:19]} Rxb6 {[%emt 0:01:55]} 73. Ra2+ {[%emt 0:00:18]} 1-0

[Event "GER-ch Youth U14W 2020"]
[Site "Willingen"]
[Date "2020.10.21"]
[Round "3.7"]
[White "Deák-Sala, Emília"]
[Black "Roncea, Andrea-Alexandra"]
[Result "1-0"]
[ECO "C51"]
[WhiteElo "1641"]
[BlackElo "1644"]
[Annotator "NA RC"]
[PlyCount "50"]
[EventDate "2020.10.20"]
[EventType "swiss"]
[EventRounds "7"]
[EventCountry "GER"]
[SourceTitle "playchess.com"]
[Source "ChessBase"]
[SourceQuality "1"]
[TimeControl "40/5400+30:1800+30"]

1. e4 {[%emt 0:00:00]} e5 {[%emt 0:00:00]} 2. Nf3 {[%emt 0:00:00]} Nc6 {[%emt 0:00:00]} 3. Bc4 {[%emt 0:00:00]} Bc5 {[%emt 0:00:00]} 4. b4 {[%emt 0:00:00]} Bb6 {[%emt 0:00:00]} 5. a4 {[%emt 0:00:00]} a6 {[%emt 0:00:07]} 6. c3 {[%emt 0:00:53]} Nf6 {[%emt 0:01:36]} 7. Qe2 {[%emt 0:07:43]} O-O {[%emt 0:05:06]} 8. O-O {[%emt 0:06:51]} h6 {[%emt 0:04:18]} 9. Na3 {[%emt 0:03:31]} d6 {[%emt 0:02:47]} 10. h3 {[%emt 0:01:57]} Re8 {[%emt 0:03:18]} 11. d3 {[%emt 0:03:37]} Ne7 {[%emt 0:01:36]} 12. Qa2 {[%emt 0:03:47]} Rf8 {[%emt 0:01:23]} 13. Nh4 {[%emt 0:02:07]} g5 {[%emt 0:07:53]} 14. Nf3 {[%emt 0:02:09]} Ng6 {[%emt 0:08:57]} 15. Kh1 {[%emt 0:16:11]} Qd7 {[%emt 0:13:37]} 16. a5 {[%emt 0:01:21]} Ba7 {[%emt 0:00:08]} 17. Qe2 {[%emt 0:18:35]} Kh7 {[%emt 0:13:36]} 18. Nc2 {[%emt 0:05:23]} g4 {[%emt 0:04:47]} 19. Qd2 {[%emt 0:04:57]} Nf4 {[%emt 0:05:44]} 20. Nh2 {[%emt 0:01:32]} Ng8 {[%emt 0:15:34]} 21. Nxg4 {[%emt 0:02:29]} h5 {[%emt 0:03:19]} 22. Nh2 {[%emt 0:03:35]} Qe7 {[%emt 0:02:52]} 23. Qd1 {[%emt 0:03:09]} Kg6 {[%emt 0:03:13]} 24. Qf3 {[%emt 0:01:42]} Qf6 {[%emt 0:00:59]} 25. Be3 {[%emt 0:03:07]} Nh6 {[%emt 0:00:42]} 1-0

[Event "GER-ch Youth U14W 2020"]
[Site "Willingen"]
[Date "2020.10.21"]
[Round "3.8"]
[White "Hubert, Charlotte"]
[Black "Prinzen, Siri Marleen"]
[Result "1-0"]
[ECO "B10"]
[WhiteElo "1438"]
[BlackElo "1712"]
[Annotator "NA RC"]
[PlyCount "65"]
[EventDate "2020.10.20"]
[EventType "swiss"]
[EventRounds "7"]
[EventCountry "GER"]
[SourceTitle "playchess.com"]
[Source "ChessBase"]
[SourceQuality "1"]
[TimeControl "40/5400+30:1800+30"]

1. e4 {[%emt 0:00:00]} c6 {[%emt 0:00:00]} 2. Nf3 {[%emt 0:00:00]} d5 {[%emt 0:00:00]} 3. Nc3 {[%emt 0:00:00]} dxe4 {[%emt 0:00:32]} 4. Nxe4 {[%emt 0:00:10]} Nf6 {[%emt 0:00:15]} 5. Qe2 {[%emt 0:00:22]} e6 {[%emt 0:03:25]} 6. Nxf6+ {[%emt 0:02:35]} Qxf6 {[%emt 0:00:44]} 7. d4 {[%emt 0:01:29]} Qd8 {[%emt 0:04:37]} 8. Bf4 {[%emt 0:05:10]} Bd6 {[%emt 0:04:31]} 9. Bxd6 {[%emt 0:02:55]} Qxd6 {[%emt 0:00:02]} 10. O-O-O {[%emt 0:03:09]} O-O {[%emt 0:02:45]} 11. Kb1 {[%emt 0:06:57]} Nd7 {[%emt 0:02:26]} 12. Ne5 {[%emt 0:04:05]} Rd8 {[%emt 0:03:17]} 13. f4 {[%emt 0:02:42]} b6 {[%emt 0:04:39]} 14. Qh5 {[%emt 0:03:26]} Nxe5 {[%emt 0:05:17]} 15. fxe5 {[%emt 0:00:32]} Qf8 {[%emt 0:02:57]} 16. Bd3 {[%emt 0:01:40]} g6 {[%emt 0:01:02]} 17. Qg4 {[%emt 0:03:14]} Bb7 {[%emt 0:04:31]} 18. Rdf1 {[%emt 0:08:09]} Rd7 {[%emt 0:03:17]} 19. h4 {[%emt 0:04:08]} h5 {[%emt 0:01:12]} 20. Qg5 {[%emt 0:05:23]} Qg7 {[%emt 0:18:02]} 21. Rf4 {[%emt 0:12:26]} Kh8 {[%emt 0:15:02]} 22. g4 {[%emt 0:03:52]} Qh7 {[%emt 0:03:54]} 23. Rg1 {[%emt 0:06:36]} Rg8 {[%emt 0:05:06]} 24. Rf6 {[%emt 0:04:21]} Rg7 {[%emt 0:11:08]} 25. Qf4 {[%emt 0:10:53]} hxg4 {[%emt 0:02:24]} 26. Rxg4 {[%emt 0:06:02]} Qh5 {[%emt 0:00:17]} 27. b3 {[%emt 0:01:43]} Rc7 {[%emt 0:01:29]} 28. Kb2 {[%emt 0:00:46]} Rd7 {[%emt 0:00:30]} 29. Rg5 {[%emt 0:00:20]} Qh6 {[%emt 0:00:33]} 30. Qg4 {[%emt 0:00:25]} Qh7 {[%emt 0:00:32]} 31. h5 {[%emt 0:00:25]} gxh5 {[%emt 0:00:24]} 32. Qh4 {[%emt 0:00:55]} Rxg5 {[%emt 0:00:34]} 33. Bxh7 {[%emt 0:00:10]} 1-0

[Event "GER-ch Youth U14W 2020"]
[Site "Willingen"]
[Date "2020.10.21"]
[Round "3.10"]
[White "Foos, Vanessa"]
[Black "Ulrich, Helena Irene"]
[Result "1/2-1/2"]
[ECO "E93"]
[WhiteElo "1328"]
[BlackElo "1610"]
[Annotator "NA RC"]
[PlyCount "85"]
[EventDate "2020.10.20"]
[EventType "swiss"]
[EventRounds "7"]
[EventCountry "GER"]
[SourceTitle "playchess.com"]
[Source "ChessBase"]
[SourceQuality "1"]
[TimeControl "40/5400+30:1800+30"]

1. d4 {[%emt 0:00:00]} Nf6 {[%emt 0:00:00]} 2. c4 {[%emt 0:00:00]} g6 {[%emt 0:00:00]} 3. Nc3 {[%emt 0:00:00]} Bg7 {[%emt 0:00:00]} 4. Nf3 {[%emt 0:00:00]} O-O {[%emt 0:00:00]} 5. e4 {[%emt 0:00:02]} d6 {[%emt 0:00:01]} 6. Be2 {[%emt 0:00:27]} e5 {[%emt 0:00:20]} 7. d5 {[%emt 0:00:09]} Nbd7 {[%emt 0:01:30]} 8. h3 {[%emt 0:01:36]} a5 {[%emt 0:04:51]} 9. a3 {[%emt 0:00:14]} Nc5 {[%emt 0:00:26]} 10. Be3 {[%emt 0:01:53]} Nfxe4 {[%emt 0:02:49]} 11. Nxe4 {[%emt 0:09:57]} Nxe4 {[%emt 0:00:07]} 12. Nd2 {[%emt 0:02:20]} Nxd2 {[%emt 0:08:07]} 13. Qxd2 {[%emt 0:00:20]} f5 {[%emt 0:01:04]} 14. f4 {[%emt 0:13:30]} Qh4+ {[%emt 0:05:44]} 15. Kd1 {[%emt 0:02:24]} exf4 {[%emt 0:03:43]} 16. Bxf4 {[%emt 0:02:40]} Qf6 {[%emt 0:00:36]} 17. Kc1 {[%emt 0:15:00]} b6 {[%emt 0:03:52]} 18. Rd1 {[%emt 0:07:40]} Re8 {[%emt 0:04:34]} 19. Rb1 {[%emt 0:08:55]} a4 {[%emt 0:01:28]} 20. Bf3 {[%emt 0:08:34]} Bd7 {[%emt 0:01:56]} 21. Bg5 {[%emt 0:00:30]} Qf8 {[%emt 0:01:37]} 22. Rf1 {[%emt 0:03:42]} Ra5 {[%emt 0:08:03]} 23. Be2 {[%emt 0:07:29]} Bf6 {[%emt 0:08:41]} 24. Bd3 {[%emt 0:03:17]} Bxg5 {[%emt 0:06:10]} 25. Qxg5 {[%emt 0:00:09]} Qe7 {[%emt 0:00:12]} 26. Qg3 {[%emt 0:01:02]} Qe3+ {[%emt 0:01:54]} 27. Qxe3 {[%emt 0:00:42]} Rxe3 {[%emt 0:00:06]} 28. Kd2 {[%emt 0:01:39]} Re5 {[%emt 0:01:40]} 29. Rf3 {[%emt 0:01:53]} b5 {[%emt 0:01:51]} 30. Rc1 {[%emt 0:04:27]} bxc4 {[%emt 0:02:42]} 31. Rxc4 {[%emt 0:00:36]} Ra7 {[%emt 0:03:26]} 32. Rd4 {[%emt 0:02:06]} Rb7 {[%emt 0:02:19]} 33. Kc2 {[%emt 0:01:18]} Rb8 {[%emt 0:01:31]} 34. Bc4 {[%emt 0:00:55]} Rbe8 {[%emt 0:00:59]} 35. Rc3 {[%emt 0:01:05]} Re3 {[%emt 0:01:11]} 36. Bd3 {[%emt 0:00:37]} Rc8 {[%emt 0:00:59]} 37. Kd2 {[%emt 0:00:35]} Re5 {[%emt 0:00:27]} 38. Ba6 {[%emt 0:00:36]} Rb8 {[%emt 0:00:37]} 39. Rxc7 {[%emt 0:00:36]} Rxb2+ {[%emt 0:00:06]} 40. Kc1 {[%emt 0:00:14]} Rb6 {[%emt 0:00:21]} 41. Rxd7 {[%emt 0:30:48]} Rxa6 {[%emt 0:30:07]} 42. Rc4 {[%emt 0:00:31]} Re8 {[%emt 0:12:37]} 43. Rcc7 {[%emt 0:00:00]} 1/2-1/2

[Event "GER-ch Youth U14W 2020"]
[Site "Willingen"]
[Date "2020.10.21"]
[Round "3.11"]
[White "Becker, Linda"]
[Black "Alferova, Emily"]
[Result "1-0"]
[ECO "C44"]
[WhiteElo "1767"]
[BlackElo "1329"]
[Annotator "NA RC"]
[PlyCount "57"]
[EventDate "2020.10.20"]
[EventType "swiss"]
[EventRounds "7"]
[EventCountry "GER"]
[SourceTitle "playchess.com"]
[Source "ChessBase"]
[SourceQuality "1"]
[TimeControl "40/5400+30:1800+30"]

1. e4 {[%emt 0:00:00]} e5 {[%emt 0:00:00]} 2. Nf3 {[%emt 0:00:00]} Nc6 {[%emt 0:00:00]} 3. d4 {[%emt 0:00:00]} exd4 {[%emt 0:00:00]} 4. Nxd4 {[%emt 0:00:00]} g6 {[%emt 0:02:27]} 5. Nc3 {[%emt 0:01:48]} Bg7 {[%emt 0:00:34]} 6. Be3 {[%emt 0:00:59]} Nge7 {[%emt 0:02:21]} 7. Be2 {[%emt 0:01:49]} O-O {[%emt 0:03:17]} 8. O-O {[%emt 0:04:48]} d5 {[%emt 0:04:45]} 9. Nxd5 {[%emt 0:05:59]} Nxd5 {[%emt 0:08:09]} 10. exd5 {[%emt 0:00:24]} Qxd5 {[%emt 0:05:42]} 11. Bf3 {[%emt 0:06:30]} Qd7 {[%emt 0:05:11]} 12. Nxc6 {[%emt 0:01:52]} bxc6 {[%emt 0:01:18]} 13. c3 {[%emt 0:01:34]} Qxd1 {[%emt 0:09:35]} 14. Raxd1 {[%emt 0:00:37]} Bb7 {[%emt 0:01:01]} 15. Bf4 {[%emt 0:05:16]} Rfe8 {[%emt 0:05:58]} 16. Rd7 {[%emt 0:04:49]} Be5 {[%emt 0:03:50]} 17. Bxe5 {[%emt 0:02:09]} Rxe5 {[%emt 0:00:11]} 18. Rxc7 {[%emt 0:01:22]} Ba6 {[%emt 0:04:35]} 19. Rd1 {[%emt 0:03:24]} Rae8 {[%emt 0:03:14]} 20. h3 {[%emt 0:02:46]} Re1+ {[%emt 0:02:38]} 21. Rxe1 {[%emt 0:02:01]} Rxe1+ {[%emt 0:00:08]} 22. Kh2 {[%emt 0:00:05]} Ra1 {[%emt 0:01:24]} 23. Rxa7 {[%emt 0:01:51]} Bb5 {[%emt 0:05:39]} 24. b3 {[%emt 0:01:45]} Bd3 {[%emt 0:01:08]} 25. Bxc6 {[%emt 0:00:43]} Bf5 {[%emt 0:01:05]} 26. Bd5 {[%emt 0:00:45]} Be6 {[%emt 0:00:27]} 27. Bxe6 {[%emt 0:00:10]} fxe6 {[%emt 0:00:06]} 28. c4 {[%emt 0:00:45]} Rc1 {[%emt 0:01:14]} 29. Kg3 {[%emt 0:01:22]} 1-0

[Event "GER-ch Youth U14W 2020"]
[Site "Willingen"]
[Date "2020.10.21"]
[Round "3.12"]
[White "Sinner, Joselyne"]
[Black "Lorenz, Anouk"]
[Result "0-1"]
[ECO "B23"]
[WhiteElo "1414"]
[BlackElo "1504"]
[Annotator "NA RC"]
[PlyCount "56"]
[EventDate "2020.10.20"]
[EventType "swiss"]
[EventRounds "7"]
[EventCountry "GER"]
[SourceTitle "playchess.com"]
[Source "ChessBase"]
[SourceQuality "1"]
[TimeControl "40/5400+30:1800+30"]

1. e4 {[%emt 0:00:00]} c5 {[%emt 0:00:00]} 2. Nc3 {[%emt 0:00:00]} g6 {[%emt 0:00:00]} 3. f4 {[%emt 0:01:42]} Bg7 {[%emt 0:01:13]} 4. Nf3 {[%emt 0:00:38]} e6 {[%emt 0:05:36]} 5. Be2 {[%emt 0:13:23]} Nc6 {[%emt 0:01:01]} 6. O-O {[%emt 0:01:17]} Nge7 {[%emt 0:02:33]} 7. Kh1 {[%emt 0:03:57]} O-O {[%emt 0:05:14]} 8. d3 {[%emt 0:07:37]} d5 {[%emt 0:05:01]} 9. e5 {[%emt 0:03:08]} Nf5 {[%emt 0:02:31]} 10. g4 {[%emt 0:13:12]} Nfd4 {[%emt 0:02:44]} 11. Nxd4 {[%emt 0:06:35]} Nxd4 {[%emt 0:00:40]} 12. Bf3 {[%emt 0:01:44]} Nxf3 {[%emt 0:01:07]} 13. Qxf3 {[%emt 0:00:17]} Bd7 {[%emt 0:02:00]} 14. Bd2 {[%emt 0:08:09]} Bc6 {[%emt 0:05:31]} 15. Rae1 {[%emt 0:03:02]} Rc8 {[%emt 0:02:08]} 16. Qh3 {[%emt 0:00:55]} f6 {[%emt 0:13:51]} 17. f5 {[%emt 0:08:18]} g5 {[%emt 0:10:20]} 18. exf6 {[%emt 0:09:56]} Bxf6 {[%emt 0:01:05]} 19. fxe6 {[%emt 0:02:29]} Qe7 {[%emt 0:02:23]} 20. Rf5 {[%emt 0:03:02]} d4+ {[%emt 0:09:31]} 21. Ne4 {[%emt 0:00:51]} Qxe6 {[%emt 0:06:25]} 22. Kg1 {[%emt 0:01:18]} Bxe4 {[%emt 0:04:39]} 23. Rxe4 {[%emt 0:00:05]} Qxa2 {[%emt 0:02:03]} 24. Bxg5 {[%emt 0:02:58]} Bxg5 {[%emt 0:01:53]} 25. Rxg5+ {[%emt 0:00:05]} Kh8 {[%emt 0:00:31]} 26. Qg3 {[%emt 0:04:11]} Rce8 {[%emt 0:06:05]} 27. Rge5 {[%emt 0:01:27]} Qf7 {[%emt 0:01:18]} 28. Rxe8 {[%emt 0:00:53]} Qf1# 0-1

[Event "GER-ch Youth U14W 2020"]
[Site "Willingen"]
[Date "2020.10.21"]
[Round "3.13"]
[White "Petersen, Sophie"]
[Black "Lieberwirth, Nele"]
[Result "1-0"]
[ECO "C70"]
[WhiteElo "1524"]
[BlackElo "1366"]
[Annotator "NA RC"]
[PlyCount "73"]
[EventDate "2020.10.20"]
[EventType "swiss"]
[EventRounds "7"]
[EventCountry "GER"]
[SourceTitle "playchess.com"]
[Source "ChessBase"]
[SourceQuality "1"]
[TimeControl "40/5400+30:1800+30"]

1. e4 {[%emt 0:00:00]} e5 {[%emt 0:00:00]} 2. Nf3 {[%emt 0:00:00]} Nc6 {[%emt 0:00:00]} 3. Bb5 {[%emt 0:00:00]} a6 {[%emt 0:00:00]} 4. Ba4 {[%emt 0:00:00]} b5 {[%emt 0:00:09]} 5. Bb3 {[%emt 0:00:00]} Na5 {[%emt 0:00:14]} 6. Nxe5 {[%emt 0:01:43]} Nxb3 {[%emt 0:00:19]} 7. axb3 {[%emt 0:00:20]} Qg5 {[%emt 0:00:25]} 8. Nf3 {[%emt 0:03:21]} Qxg2 {[%emt 0:01:02]} 9. Rg1 {[%emt 0:00:10]} Qh3 {[%emt 0:00:32]} 10. d3 {[%emt 0:02:27]} Nf6 {[%emt 0:04:21]} 11. Bf4 {[%emt 0:05:07]} d6 {[%emt 0:08:34]} 12. Rg3 {[%emt 0:06:16]} Qd7 {[%emt 0:10:31]} 13. Bg5 {[%emt 0:05:21]} Nh5 {[%emt 0:08:39]} 14. Rg1 {[%emt 0:01:01]} g6 {[%emt 0:02:20]} 15. Nbd2 {[%emt 0:04:28]} Bg7 {[%emt 0:02:55]} 16. c3 {[%emt 0:03:02]} O-O {[%emt 0:04:32]} 17. Be3 {[%emt 0:09:58]} Bb7 {[%emt 0:06:53]} 18. Bd4 {[%emt 0:05:09]} Nf6 {[%emt 0:05:31]} 19. Qc2 {[%emt 0:05:53]} Rfe8 {[%emt 0:06:33]} 20. O-O-O {[%emt 0:07:35]} Rac8 {[%emt 0:05:29]} 21. Be3 {[%emt 0:05:20]} c5 {[%emt 0:02:41]} 22. h4 {[%emt 0:11:56]} c4 {[%emt 0:06:33]} 23. bxc4 {[%emt 0:05:08]} bxc4 {[%emt 0:00:47]} 24. Nxc4 {[%emt 0:02:20]} Rb8 {[%emt 0:05:45]} 25. Bf4 {[%emt 0:03:39]} Bf8 {[%emt 0:06:53]} 26. Nfd2 {[%emt 0:01:57]} Bc6 {[%emt 0:04:08]} 27. Be3 {[%emt 0:04:00]} d5 {[%emt 0:04:10]} 28. Nb6 {[%emt 0:00:27]} Qb7 {[%emt 0:01:40]} 29. exd5 {[%emt 0:02:09]} Nxd5 {[%emt 0:00:18]} 30. Nxd5 {[%emt 0:01:36]} Bxd5 {[%emt 0:00:07]} 31. c4 {[%emt 0:00:59]} Rec8 {[%emt 0:01:59]} 32. Bd4 {[%emt 0:01:19]} Bh6 {[%emt 0:01:11]} 33. Bc3 {[%emt 0:00:52]} Bf3 {[%emt 0:00:40]} 34. Rde1 {[%emt 0:00:44]} Qb6 {[%emt 0:00:36]} 35. Kb1 {[%emt 0:01:24]} Bc6 {[%emt 0:00:28]} 36. Ne4 {[%emt 0:00:32]} Kf8 {[%emt 0:00:00]} 37. c5 {[%emt 0:00:00]} 1-0

[Event "GER-ch Youth U14W 2020"]
[Site "Willingen"]
[Date "2020.10.22"]
[Round "4.1"]
[White "Bildat, Emilia"]
[Black "Zhou, Lepu Coco"]
[Result "1-0"]
[ECO "A15"]
[WhiteElo "1704"]
[BlackElo "1872"]
[Annotator "NA RC"]
[PlyCount "121"]
[EventDate "2020.10.20"]
[EventType "swiss"]
[EventRounds "7"]
[EventCountry "GER"]
[SourceTitle "playchess.com"]
[Source "ChessBase"]
[SourceQuality "1"]
[TimeControl "40/5400+30:1800+30"]

{[%evp 12,120,70,59,116,43,83,103,172,141,257,14,32,28,42,13,10,12,85,56,69,67,54,42,78,32767,32767,32767,32767,32767,73,-12,-8,-7,32767,32767,32767,32767,0,0,0,-5,-1,-2,-5,0,-9,32767,32767,32767,32767,32767,-8,-8,-6,-9,8,32767,6,6,86,83,32767,32767,32767,32767,32767,32767,32767,32767,296,32767,32767,316,310,343,253,349,282,32767,32767,32767,32767,32767,32767,32767,32767,32767,32767,32767,32767,32767,32767,32767,32767,32767,32767,32767,32767,32767,32767,32767,32767,32767,32767,32767,32767,32767,29982,27999,29983]} 1. c4 {[%emt 0:00:00]} Nf6 {[%emt 0:00:00]} 2. g3 {[%emt 0:00:00]} c6 {[%emt 0:00:00]} 3. Bg2 {[%emt 0:00:00]} d5 {[%emt 0:00:00]} 4. Nf3 {[%emt 0:00:12]} dxc4 {[%emt 0:00:00]} 5. Qc2 {[%emt 0:01:33]} Qd5 {[%emt 0:00:17]} 6. O-O {[%emt 0:11:23] A11: English Opening: 1...c6.} g6 {[%emt 0:07:00]} (6... Bf5 $11 7. Qa4 Qc5) 7. Na3 {[%emt 0:03:11]} b5 {[%emt 0:02:28] [#]} (7... Be6 $14) 8. Nh4 $146 {[%emt 0:05:51]} (8. b3 $1 $16) ({Predecessor:} 8. d3 cxd3 9. exd3 Bg7 10. Re1 Bb7 11. Ne5 Qd6 12. Nxb5 Qd8 13. Nxc6 Nxc6 14. Bxc6+ Bxc6 15. Qxc6+ Kf8 16. Bf4 Qxd3 17. Qxa8+ Ne8 18. Nc7 {1-0 (18) Thompson,E (1774)-Krag Jacobsen,A (1753) ICCF email 2008}) 8... Qh5 {[%emt 0:00:58]} 9. d3 {[%emt 0:05:51]} cxd3 {[%emt 0:05:15]} (9... Bg7 $16) 10. exd3 {[%emt 0:01:05]} Nfd7 {[%emt 0:17:29] [#]} (10... Nd5 $142) 11. Bf3 $2 {[%emt 0:15:02]} ({Not} 11. Bxc6 Nxc6 12. Qxc6 {[%mdl 64] Double Attack} Rb8 $14) (11. d4 $1 $18 Nb6 12. Re1 (12. Bxc6+ Nxc6 13. Qxc6+ Bd7 $15)) 11... Qc5 {[%emt 0:00:13]} 12. Qxc5 {[%emt 0:01:50]} Nxc5 {[%emt 0:00:06] [#]} 13. Nxb5 $1 {[%emt 0:00:11]} Ne6 $1 {[%emt 0:01:29]} 14. Be3 {[%emt 0:09:45]} a6 {[%emt 0:05:10]} (14... Bg7 $11) 15. Na7 {[%emt 0:06:35]} Bd7 {[%emt 0:01:03]} 16. Rac1 {[%emt 0:01:02]} Nd8 {[%emt 0:01:56]} 17. Bb6 {[%emt 0:00:50]} g5 {[%emt 0:00:53]} 18. Ng2 {[%emt 0:08:17]} g4 {[%emt 0:00:21]} 19. Bd1 {[%emt 0:00:27]} Bg7 {[%emt 0:01:04]} 20. Ba4 {[%emt 0:04:21]} O-O {[%emt 0:05:14]} (20... Ne6 $11 {remains equal.} 21. Nxc6 Nxc6 22. Rxc6 (22. Bxc6 Rb8 $11) 22... O-O) 21. Bxd8 {[%emt 0:02:28]} (21. d4 $14) 21... Rxd8 {[%emt 0:00:11]} 22. Nxc6 {[%emt 0:00:41]} Nxc6 {[%emt 0:01:26]} 23. Bxc6 {[%emt 0:00:08]} Bxc6 {[%emt 0:00:05]} 24. Rxc6 {[%emt 0:00:05]} Bxb2 {[%emt 0:00:22]} 25. Rc4 {[%emt 0:03:27]} Rd4 {[%emt 0:01:27]} 26. Ne3 {[%emt 0:01:47]} Rxc4 {[%emt 0:00:48]} 27. dxc4 {[%emt 0:00:40]} Rc8 {[%emt 0:00:35]} 28. Rd1 {[%emt 0:01:33]} f6 {[%emt 0:01:13]} 29. Kf1 {[%emt 0:03:32]} Kf7 {[%emt 0:01:01]} 30. Ke2 {[%emt 0:01:29]} Rc5 {[%emt 0:00:29]} 31. Rd2 {[%emt 0:01:28]} Bc1 {[%emt 0:00:20]} 32. Rc2 {[%emt 0:02:23]} Bxe3 $1 {[%emt 0:00:53]} 33. Kxe3 {[%emt 0:01:11]} e5 {[%emt 0:00:18]} 34. Kd3 {[%emt 0:01:36]} f5 {[%emt 0:01:26]} 35. Kc3 {[%emt 0:02:21]} a5 {[%emt 0:00:54]} (35... Rc6 $11) 36. Rb2 {[%emt 0:00:47]} Ke6 {[%emt 0:11:02]} 37. Rb6+ {[%emt 0:00:47]} Kd7 {[%emt 0:00:53]} 38. Rh6 {[%emt 0:01:03]} Rc8 {[%emt 0:00:52]} 39. Rxh7+ {[%emt 0:00:14]} Kd6 {[%emt 0:00:09]} 40. h4 {[%emt 0:02:53]} Rg8 $2 {[%emt 0:02:58]} (40... gxh3 $1 $14 41. Rh6+ (41. Rxh3 e4 $16) 41... Ke7) 41. Ra7 {[%emt 0:31:26]} f4 {[%emt 0:30:31]} 42. Rxa5 {[%emt 0:00:00]} Rf8 {[%emt 0:00:00]} 43. gxf4 {[%emt 0:00:00]} Rxf4 {[%emt 0:00:00] [#]} (43... exf4 $142 44. Kd3 g3) 44. Rd5+ $1 {[%emt 0:00:00]} Ke6 {[%emt 0:00:00]} 45. Rd2 {[%emt 0:00:00]} Rf3+ {[%emt 0:00:00]} 46. Kb4 {[%emt 0:00:00]} Rh3 {[%emt 0:00:00]} 47. c5 {[%emt 0:00:00]} Rxh4 {[%emt 0:00:00]} 48. Kb5 {[%emt 0:00:00]} Rh1 {[%emt 0:00:00]} 49. c6 {[%emt 0:00:00]} Rb1+ {[%emt 0:00:00]} 50. Ka6 {[%emt 0:00:00]} Rc1 {[%emt 0:00:00]} 51. Kb7 {[%emt 0:00:00]} Rb1+ {[%emt 0:00:00]} 52. Kc7 {[%emt 0:00:00]} Ke7 {[%emt 0:00:00]} 53. a4 {[%emt 0:00:00]} Ra1 {[%emt 0:00:00]} 54. Rb2 {[%emt 0:00:17]} Rxa4 {[%emt 0:00:00]} 55. Kb7 {[%emt 0:00:22]} Rc4 {[%emt 0:00:00]} 56. c7 {[%emt 0:00:16]} Kf6 {[%emt 0:00:00]} 57. c8=Q {[%emt 0:01:07]} Rxc8 {[%emt 0:00:00]} 58. Kxc8 {[%emt 0:00:04]} Kf5 {[%emt 0:00:00]} 59. Re2 {[%emt 0:00:21]} e4 {[%emt 0:00:00]} 60. Re3 {[%emt 0:00:21]} Ke5 {[%emt 0:00:00]} 61. Kd7 {[%emt 0:00:21]} 1-0